fUST/lending_fUST_20251211
["ID","MTS","AMOUNT","RATE_DAILY","PERIOD"]
[398152310,1765405832124,-1101.0,0.00012797,2]
[398152311,1765405832133,-681.0,0.00012797,2]
[398152312,1765405832142,-312.67858679,0.00013273,2]
[398152313,1765405832152,-553.64373807,0.00013345,2]
[398152314,1765405832161,-1101.0,0.00013345,2]
[398152315,1765405832171,-720.0,0.00013575,2]
[398152316,1765405832180,-1964.076221,0.00013698,2]
[398152317,1765405832189,-500.0,0.00013698,2]
[398152318,1765405832199,-500.0,0.00013698,2]
[398152319,1765405832208,-167.54276645,0.00013698,2]
[398152320,1765405832217,-500.0,0.00013698,2]
[398152321,1765405832227,-500.0,0.00013698,2]
[398152322,1765405832236,-858.19,0.00013698,2]
[398152323,1765405832245,-500.0,0.00013698,2]
[398152324,1765405832255,-536.94,0.00013698,2]
[398152325,1765405832264,-500.0,0.00013698,2]
[398152326,1765405832274,-1146.33,0.00013698,2]
[398152327,1765405832284,-500.0,0.00013698,2]
[398152328,1765405832293,-500.0,0.00013698,2]
[398152329,1765405832303,-500.0,0.00013698,2]
[398152330,1765405832312,-500.0,0.00013698,2]
[398152331,1765405832321,-500.0,0.00013698,2]
[398152332,1765405832330,-500.0,0.00013698,2]
[398152333,1765405832339,-806.12,0.00013698,2]
[398152334,1765405832348,-501.1792047,0.00013698,2]
[398152335,1765405832357,-231.98352791,0.00013698,2]
[398152336,1765405832366,-500.0,0.00013698,2]
[398152337,1765405832376,-500.0,0.00013698,2]
[398152338,1765405832385,-1009.74,0.00013698,2]
[398152339,1765405832393,-500.0,0.00013698,2]
[398152340,1765405832403,-500.0,0.00013698,2]
[398152341,1765405832412,-500.0,0.00013698,2]
[398152342,1765405832421,-500.0,0.00013698,2]
[398152343,1765405832430,-500.0,0.00013698,2]
[398152344,1765405832440,-1384.87,0.00013698,2]
[398152345,1765405832449,-1514.12,0.00013698,2]
[398152346,1765405832458,-500.0,0.00013698,2]
[398152347,1765405832467,-500.0,0.00013698,2]
[398152348,1765405832476,-500.0,0.00013698,2]
[398152349,1765405832485,-500.0,0.00013698,2]
[398152350,1765405832494,-1120.54,0.00013698,2]
[398152351,1765405832503,-500.0,0.00013698,2]
[398152352,1765405832512,-500.0,0.00013698,2]
[398152353,1765405832521,-500.0,0.00013698,2]
[398152354,1765405832531,-500.0,0.00013698,2]
[398152355,1765405832540,-500.0,0.00013698,2]
[398152356,1765405832549,-1552.56,0.00013698,2]
[398152357,1765405832558,-500.0,0.00013698,2]
[398152358,1765405832568,-500.0,0.00013698,2]
[398152359,1765405832577,-500.0,0.00013698,2]
[398152360,1765405832586,-500.4414219,0.00013698,2]
[398152361,1765405832595,-500.0,0.00013698,2]
[398152362,1765405832605,-500.0,0.00013698,2]
[398152363,1765405832615,-500.0,0.00013698,2]
[398152364,1765405832629,-500.0,0.00013698,2]
[398152365,1765405832637,-500.0,0.00013698,2]
[398152366,1765405832646,-500.0,0.00013698,2]
[398152367,1765405832654,-500.0,0.00013698,2]
[398152368,1765405832664,-500.0,0.00013698,2]
[398152369,1765405832673,-845.1,0.00013698,2]
[398152370,1765405832683,-500.0,0.00013698,2]
[398152371,1765405832695,-500.0,0.00013698,2]
[398152372,1765405832704,-501.7399685,0.00013698,2]
[398152373,1765405832714,-500.0,0.00013698,2]
[398152374,1765405832723,-1528.42,0.00013698,2]
[398152375,1765405832733,-500.0,0.00013698,2]
[398152376,1765405832744,-461.65995057,0.00013698,2]
[398152377,1765405832754,-500.0,0.00013698,2]
[398152379,1765405832763,-500.0,0.00013698,2]
[398152380,1765405832771,-500.0,0.00013698,2]
[398152381,1765405832780,-865.29,0.00013698,2]
[398152382,1765405832790,-500.0,0.00013698,2]
[398152383,1765405832799,-500.0,0.00013698,2]
[398152384,1765405832808,-500.0,0.00013698,2]
[398152385,1765405832817,-500.0,0.00013698,2]
[398152386,1765405832826,-507.96,0.00013698,2]
[398152387,1765405832835,-500.0,0.00013698,2]
[398152388,1765405832845,-500.0,0.00013698,2]
[398152389,1765405832854,-934.88,0.00013698,2]
[398152390,1765405832863,-500.0,0.00013698,2]
[398152391,1765405832871,-500.0,0.00013698,2]
[398152392,1765405832881,-500.0,0.00013698,2]
[398152393,1765405832891,-514.22,0.00013698,2]
[398152394,1765405832900,-771.52,0.00013698,2]
[398152395,1765405832909,-500.0,0.00013698,2]
[398152396,1765405832918,-500.0,0.00013698,2]
[398152397,1765405832927,-500.0,0.00013698,2]
[398152398,1765405832936,-500.0,0.00013698,2]
[398152399,1765405832946,-500.0,0.00013698,2]
[398152400,1765405832955,-500.0,0.00013698,2]
[398152401,1765405832964,-647.12,0.00013698,2]
[398152402,1765405832973,-500.0,0.00013698,2]
[398152403,1765405832983,-500.0,0.00013698,2]
[398152404,1765405832993,-500.0,0.00013698,2]
[398152405,1765405833002,-500.0,0.00013698,2]
[398152406,1765405833011,-500.0,0.00013698,2]
[398152407,1765405833020,-561.33028918,0.00013698,2]
[398152408,1765405833030,-500.0,0.00013698,2]
[398152409,1765405833039,-500.0,0.00013698,2]
[398152410,1765405833049,-500.0,0.00013698,2]
[398152411,1765405833058,-500.0,0.00013698,2]
[398152412,1765405833067,-500.0,0.00013698,2]
[398152413,1765405833077,-500.0,0.00013698,2]
[398152414,1765405833087,-500.0,0.00013698,2]
[398152415,1765405833096,-500.0,0.00013698,2]
[398152416,1765405833106,-318.8829531,0.00013698,2]
[398152417,1765405833524,-254.84448138,0.00013698,2]
[398152452,1765405838120,-748.8671078,0.00013412,2]
[398152654,1765405840210,-453.0,0.00013412,2]
[398152661,1765405840272,-158.1328922,0.00013412,2]
[398152664,1765405840281,-92.63817325,0.00013697,2]
[398152873,1765405843196,-417.55037667,0.00013412,2]
[398152875,1765405843207,-213.44962333,0.00013412,2]
[398152877,1765405843216,-70.41463201,0.00013697,2]
[398152879,1765405843225,-247.36256552,0.00013698,2]
[398152881,1765405843235,-403.00400451,0.00013698,2]
[398152883,1765405843244,-500.0,0.00013698,2]
[398152885,1765405843253,-500.0,0.00013698,2]
[398152886,1765405843262,-500.0,0.00013698,2]
[398152888,1765405843271,-41.76548,0.00013698,2]
[398153154,1765405846015,-458.23452,0.00013698,2]
[398153156,1765405846024,-102.76548001,0.00013698,2]
[398153159,1765405846043,-302.0,0.00013698,2]
[398153169,1765405846129,-95.23451999,0.00013698,2]
[398153171,1765405846139,-1117.76,0.00013698,2]
[398153174,1765405846150,-514.12,0.00013698,2]
[398153176,1765405846159,-250.03775567,0.00013698,2]
[398153178,1765405846170,-500.0,0.00013698,2]
[398153180,1765405846180,-521.69,0.00013698,2]
[398153182,1765405846189,-564.94,0.00013698,2]
[398153184,1765405846199,-500.0,0.00013698,2]
[398153186,1765405846209,-500.0,0.00013698,2]
[398153188,1765405846218,-500.0,0.00013698,2]
[398153190,1765405846227,-1322.98,0.00013698,2]
[398153192,1765405846236,-500.0,0.00013698,2]
[398153194,1765405846246,-216.28731471,0.00013698,2]
[398153196,1765405846256,-500.0,0.00013698,2]
[398153198,1765405846265,-500.0,0.00013698,2]
[398153200,1765405846275,-500.0,0.00013698,2]
[398153202,1765405846284,-500.0,0.00013698,2]
[398153204,1765405846295,-500.0,0.00013698,2]
[398153206,1765405846305,-500.0,0.00013698,2]
[398153208,1765405846314,-500.0,0.00013698,2]
[398153211,1765405846324,-500.0,0.00013698,2]
[398153213,1765405846334,-500.0,0.00013698,2]
[398153215,1765405846344,-1193.28,0.00013698,2]
[398153217,1765405846353,-2238.3579139,0.00013698,2]
[398153219,1765405846363,-500.0,0.00013698,2]
[398153221,1765405846372,-500.0,0.00013698,2]
[398153223,1765405846382,-500.0,0.00013698,2]
[398153225,1765405846392,-500.0,0.00013698,2]
[398153227,1765405846401,-500.0,0.00013698,2]
[398153229,1765405846411,-500.0,0.00013698,2]
[398153231,1765405846420,-500.0,0.00013698,2]
[398153233,1765405846430,-563.31354548,0.00013698,2]
[398153235,1765405846439,-500.0,0.00013698,2]
[398153237,1765405846448,-500.0,0.00013698,2]
[398153239,1765405846458,-500.0,0.00013698,2]
[398153241,1765405846467,-500.0,0.00013698,2]
[398153244,1765405846477,-500.0,0.00013698,2]
[398153246,1765405846487,-688.64,0.00013698,2]
[398153248,1765405846496,-500.0,0.00013698,2]
[398153250,1765405846507,-863.2,0.00013698,2]
[398153252,1765405846517,-500.0,0.00013698,2]
[398153254,1765405846527,-500.0,0.00013698,2]
[398153256,1765405846536,-1155.87,0.00013698,2]
[398153258,1765405846546,-781.1,0.00013698,2]
[398153260,1765405846556,-500.0,0.00013698,2]
[398153262,1765405846565,-204.82,0.00013698,2]
[398153264,1765405846575,-500.0,0.00013698,2]
[398153266,1765405846584,-500.0,0.00013698,2]
[398153268,1765405846594,-500.0,0.00013698,2]
[398153270,1765405846603,-500.0,0.00013698,2]
[398153272,1765405846613,-500.0,0.00013698,2]
[398153274,1765405846623,-552.68,0.00013698,2]
[398153276,1765405846636,-373.40507422,0.00013698,2]
[398153278,1765405846646,-1965.02,0.00013698,2]
[398153280,1765405846656,-313.22122147,0.00013698,2]
[398153282,1765405846667,-532.2418468,0.00013698,2]
[398153284,1765405846677,-500.0,0.00013698,2]
[398153286,1765405846686,-500.0,0.00013698,2]
[398153288,1765405846695,-500.0,0.00013698,2]
[398153290,1765405846706,-1461.78,0.00013698,2]
[398153292,1765405846715,-759.89,0.00013698,2]
[398153294,1765405846725,-964.15,0.00013698,2]
[398153296,1765405846735,-1375.71,0.00013698,2]
[398153298,1765405846744,-1433.06,0.00013698,2]
[398153300,1765405846753,-500.0,0.00013698,2]
[398153302,1765405846763,-500.0,0.00013698,2]
[398153304,1765405846773,-500.0,0.00013698,2]
[398153306,1765405846782,-500.0,0.00013698,2]
[398153308,1765405846792,-500.0,0.00013698,2]
[398153310,1765405846802,-500.0,0.00013698,2]
[398153312,1765405846812,-709.22,0.00013698,2]
[398153314,1765405846821,-500.0,0.00013698,2]
[398153316,1765405846831,-500.0,0.00013698,2]
[398153318,1765405846840,-500.0,0.00013698,2]
[398153320,1765405846850,-500.0,0.00013698,2]
[398153322,1765405846859,-500.0,0.00013698,2]
[398153325,1765405846869,-500.0,0.00013698,2]
[398153327,1765405846878,-500.0,0.00013698,2]
[398153329,1765405846887,-500.0,0.00013698,2]
[398153331,1765405846896,-500.0,0.00013698,2]
[398153333,1765405846906,-667.72,0.00013698,2]
[398153335,1765405846915,-500.0,0.00013698,2]
[398153337,1765405846925,-500.0,0.00013698,2]
[398153339,1765405846934,-500.0,0.00013698,2]
[398153341,1765405846943,-500.0,0.00013698,2]
[398153343,1765405846952,-500.0,0.00013698,2]
[398153345,1765405846961,-500.0,0.00013698,2]
[398153347,1765405846970,-500.0,0.00013698,2]
[398153349,1765405846980,-500.0,0.00013698,2]
[398153351,1765405846989,-810.3,0.00013698,2]
[398153353,1765405846998,-855.43,0.00013698,2]
[398153355,1765405847008,-500.0,0.00013698,2]
[398153357,1765405847019,-500.0,0.00013698,2]
[398153359,1765405847028,-500.0,0.00013698,2]
[398153361,1765405847037,-1045.6,0.00013698,2]
[398153363,1765405847046,-500.0,0.00013698,2]
[398153365,1765405847055,-500.0,0.00013698,2]
[398153367,1765405847063,-500.0,0.00013698,2]
[398153369,1765405847072,-500.0,0.00013698,2]
[398153371,1765405847081,-500.0,0.00013698,2]
[398153373,1765405847090,-500.0,0.00013698,2]
[398153375,1765405847099,-500.0,0.00013698,2]
[398153377,1765405847108,-793.14,0.00013698,2]
[398153379,1765405847118,-2907.83,0.00013698,2]
[398153381,1765405847127,-868.08,0.00013698,2]
[398153383,1765405847136,-520.82,0.00013698,2]
[398153385,1765405847145,-500.0,0.00013698,2]
[398153387,1765405847154,-500.0,0.00013698,2]
[398153389,1765405847163,-500.0,0.00013698,2]
[398153391,1765405847172,-500.0,0.00013698,2]
[398153393,1765405847181,-1757.79,0.00013698,2]
[398153395,1765405847190,-1098.57,0.00013698,2]
[398153397,1765405847199,-501.09672788,0.00013698,2]
[398153399,1765405847208,-500.0,0.00013698,2]
[398153401,1765405847217,-500.0,0.00013698,2]
[398153403,1765405847226,-812.24,0.00013698,2]
[398153405,1765405847235,-500.0,0.00013698,2]
[398153407,1765405847244,-723.13,0.00013698,2]
[398153409,1765405847253,-991.71,0.00013698,2]
[398153411,1765405847262,-1218.72,0.00013698,2]
[398153413,1765405847271,-1059.2,0.00013698,2]
[398153415,1765405847280,-500.0,0.00013698,2]
[398153417,1765405847289,-500.0,0.00013698,2]
[398153420,1765405847298,-500.0,0.00013698,2]
[398153422,1765405847307,-784.87514308,0.00013698,2]
[398155115,1765405866880,150.0,6.755e-05,2]
[398155142,1765405937692,165.68,6.739e-05,2]
[398155150,1765406016504,163.57,6.734e-05,2]
[398155151,1765406064920,-327.14,7.055e-05,2]
[398155152,1765406064953,-490.72,7.375e-05,2]
[398155153,1765406064986,-654.29,7.696e-05,2]
[398155154,1765406065018,-817.86,8.017e-05,2]
[398155155,1765406065051,-981.43,8.337e-05,2]
[398155156,1765406065082,-1145.0,8.658e-05,2]
[398155157,1765406065113,-243.64670471,8.845e-05,2]
[398155158,1765406065144,-242.47308835,8.845e-05,2]
[398155162,1765406074113,-1308.58,8.979e-05,2]
[398155163,1765406074146,-1472.15,9.299e-05,2]
[398155164,1765406074178,-1635.72,9.62e-05,2]
[398155165,1765406074541,-243.64670471,0.00010511,2]
[398155166,1765406074572,-242.47308835,0.0001059,2]
[398155167,1765406091738,150.0,6.736e-05,2]
[398155168,1765406102271,153.05,6.5e-05,2]
[398155171,1765406166663,162.06,6.5e-05,2]
[398155172,1765406167567,150.0,6.734e-05,2]
[398155173,1765406226229,161.79,6.5e-05,2]
[398155174,1765406240408,150.0,6.733e-05,2]
[398155177,1765406279981,242.91,7.048e-05,2]
[398155178,1765406286670,161.79,6.5e-05,2]
[398155182,1765406312708,150.0,6.736e-05,2]
[398155184,1765406346900,161.79,6.5e-05,2]
[398155185,1765406375170,-150.0,7.057e-05,2]
[398155186,1765406385986,150.0,6.734e-05,2]
[398155187,1765406386400,150.0,7.055e-05,2]
[398155188,1765406405811,161.38,6.5e-05,2]
[398155189,1765406458207,150.0,6.957e-05,2]
[398155190,1765406467194,161.25,6.5e-05,2]
[398155192,1765406528304,161.25,6.5e-05,2]
[398155193,1765406528689,150.0,6.74e-05,2]
[398155194,1765406586505,159.37,6.5e-05,2]
[398155195,1765406598461,150.0,6.738e-05,2]
[398155196,1765406648176,159.37,6.5e-05,2]
[398155197,1765406668216,150.0,6.957e-05,2]
[398155198,1765406670833,-159.37,7.2e-05,2]
[398155200,1765406706289,159.37,6.5e-05,2]
[398155201,1765406739064,150.0,6.958e-05,2]
[398155207,1765406778568,159.37,6.5e-05,2]
[398155209,1765406808946,150.0,6.958e-05,2]
[398155210,1765406826001,159.37,6.5e-05,2]
[398155211,1765406878669,150.0,6.957e-05,2]
[398155213,1765406885682,159.37,6.5e-05,2]
[398155214,1765406945727,159.37,6.5e-05,2]
[398155215,1765406947009,150.0,6.738e-05,2]
[398155216,1765406947997,150.0,7.059e-05,2]
[398155224,1765406982911,-150.0,7.378e-05,2]
[398155225,1765406982939,-524.0,7.378e-05,2]
[398155226,1765407005244,159.38,6.5e-05,2]
[398155227,1765407015006,150.0,6.731e-05,2]
[398155228,1765407015394,150.0,7.052e-05,2]
[398155229,1765407015799,150.0,7.372e-05,2]
[398155276,1765407032183,-150.0,7.514e-05,2]
[398155278,1765407032193,-150.0,7.62e-05,2]
[398155280,1765407032203,-150.0,7.951e-05,2]
[398155282,1765407032212,-150.0,8.283e-05,2]
[398155286,1765407032222,-159.38,8.4e-05,2]
[398155288,1765407032231,-150.0,8.655e-05,2]
[398155290,1765407032241,-78.99025698,8.97e-05,2]
[398155292,1765407032252,-747.04739313,8.97e-05,2]
[398155294,1765407032261,-150.0,8.975e-05,2]
[398155296,1765407032271,-311.03592537,9.085e-05,2]
[398155298,1765407032280,-273.3624672,9.514e-05,2]
[398155300,1765407032289,-159.64,0.0001,2]
[398155302,1765407032299,-826.03765011,0.00010232,2]
[398155303,1765407032308,-159.38,0.000103,2]
[398155305,1765407032318,-300.0,0.0001072,2]
[398155307,1765407032327,-300.0,0.0001072,2]
[398155309,1765407032337,-300.0,0.0001072,2]
[398155311,1765407032346,-300.0,0.0001072,2]
[398155313,1765407032355,-300.0,0.0001072,2]
[398155315,1765407032364,-300.0,0.0001072,2]
[398155317,1765407032374,-300.0,0.0001072,2]
[398155319,1765407032383,-300.0,0.0001072,2]
[398155321,1765407032393,-300.0,0.0001072,2]
[398155323,1765407032402,-300.0,0.0001072,2]
[398155325,1765407032412,-300.0,0.0001072,2]
[398155327,1765407032422,-300.0,0.0001072,2]
[398155329,1765407032431,-300.0,0.0001072,2]
[398155331,1765407032441,-300.0,0.0001072,2]
[398155333,1765407032451,-300.0,0.0001072,2]
[398155335,1765407032460,-600.0,0.00010933,2]
[398155338,1765407032470,-311.03592537,0.00011443,2]
[398155339,1765407032479,-826.03765011,0.00011495,2]
[398155342,1765407032489,-506.50240829,0.00011899,2]
[398155343,1765407032499,-83796.88025623,0.000119,2]
[398155346,1765407032511,-28289.51667992,0.000119,2]
[398155348,1765407032523,-607.51500014,0.000119,2]
[398155350,1765407032534,-1585.5370274,0.000119,2]
[398155352,1765407032546,-2997.86350935,0.000119,2]
[398155412,1765407038285,-500.0,0.00011899,2]
[398155414,1765407038295,-299.77441939,0.00011899,2]
[398155416,1765407038305,-399.06136486,0.00011899,2]
[398155418,1765407038314,-500.0,0.00011899,2]
[398155420,1765407038324,-463.63363136,0.00011899,2]
[398155422,1765407038333,-358.60031225,0.00011899,2]
[398155424,1765407038343,-199594.98376152,0.000119,2]
[398155427,1765407038352,-566.79,0.00011927,2]
[398155428,1765407038361,-175.89354135,0.00011927,2]
[398155430,1765407038371,-500.0,0.00011973,2]
[398155432,1765407038380,-500.0,0.00011973,2]
[398155434,1765407038390,-502.20646407,0.00011973,2]
[398155436,1765407038399,-155.00985014,0.00011979,2]
[398155438,1765407038408,-323.202023,0.00011979,2]
[398155440,1765407038417,-720.0,0.00012027,2]
[398155442,1765407038427,-2297.26132331,0.000121,2]
[398155444,1765407038436,-159.38,0.000121,2]
[398155446,1765407038446,-2329.0390836,0.00012308,2]
[398155448,1765407038455,-1678.7684354,0.00012361,2]
[398155450,1765407038464,-1650.3338595,0.000124,2]
[398155452,1765407038474,-187.969,0.00012463,2]
[398155454,1765407038483,-826.03765011,0.00012757,2]
[398155456,1765407038492,-700.0,0.00012796,2]
[398155458,1765407038501,-533.88981491,0.00013014,2]
[398155460,1765407038511,-1101.0,0.00013014,2]
[398155462,1765407038520,-259.25,0.00013014,2]
[398155464,1765407038529,-864.0,0.00013229,2]
[398155466,1765407038539,-1360.0,0.00013399,2]
[398155468,1765407038547,-2156.0,0.00013399,2]
[398155470,1765407038556,-631.0,0.00013399,2]
[398155472,1765407038566,-150.0,0.00013399,2]
[398155474,1765407038575,-150.061,0.00013399,2]
[398155476,1765407038585,-3558.92988729,0.00013522,2]
[398155478,1765407038595,-553.64373807,0.00013562,2]
[398155480,1765407038605,-1101.0,0.00013562,2]
[398155482,1765407038615,-2000.0,0.00013697,2]
[398155484,1765407038624,-11801.2362979,0.00013698,2]
[398155486,1765407038633,-500.0,0.00013698,2]
[398155488,1765407038643,-500.0,0.00013698,2]
[398155491,1765407038653,-500.0,0.00013698,2]
[398155493,1765407038662,-213.7868634,0.00013698,2]
[398155494,1765407038672,-500.0,0.00013698,2]
[398155496,1765407038681,-500.0,0.00013698,2]
[398155498,1765407038691,-500.0,0.00013698,2]
[398155501,1765407038701,-500.0,0.00013698,2]
[398155503,1765407038710,-500.0,0.00013698,2]
[398155505,1765407038719,-204.83,0.00013698,2]
[398155506,1765407038728,-500.0,0.00013698,2]
[398155509,1765407038738,-500.0,0.00013698,2]
[398155510,1765407038747,-949.62,0.00013698,2]
[398155513,1765407038757,-1099.13,0.00013698,2]
[398155514,1765407038766,-182.77068938,0.00013698,2]
[398155516,1765407038775,-500.0,0.00013698,2]
[398155518,1765407038785,-801.34,0.00013698,2]
[398155520,1765407038795,-519.95,0.00013698,2]
[398155522,1765407038804,-500.0,0.00013698,2]
[398155524,1765407038813,-1945.205755,0.00013698,2]
[398155526,1765407038823,-1731.52,0.00013698,2]
[398155528,1765407038832,-500.0,0.00013698,2]
[398155530,1765407038842,-500.0,0.00013698,2]
[398155532,1765407038852,-500.0,0.00013698,2]
[398155534,1765407038862,-500.0,0.00013698,2]
[398155536,1765407038872,-977.63,0.00013698,2]
[398155538,1765407038882,-781.77,0.00013698,2]
[398155540,1765407038892,-500.0,0.00013698,2]
[398155542,1765407038901,-500.0,0.00013698,2]
[398155544,1765407038911,-500.0,0.00013698,2]
[398155546,1765407038920,-500.0,0.00013698,2]
[398155548,1765407038930,-1501.43,0.00013698,2]
[398155550,1765407038940,-500.0,0.00013698,2]
[398155552,1765407038950,-500.0,0.00013698,2]
[398155554,1765407038959,-500.0,0.00013698,2]
[398155556,1765407038968,-500.0,0.00013698,2]
[398155558,1765407038979,-1703.92,0.00013698,2]
[398155560,1765407038988,-500.0,0.00013698,2]
[398155562,1765407038998,-500.0,0.00013698,2]
[398155564,1765407039007,-500.0,0.00013698,2]
[398155567,1765407039017,-500.0,0.00013698,2]
[398155569,1765407039027,-500.0,0.00013698,2]
[398155571,1765407039036,-500.0,0.00013698,2]
[398155573,1765407039046,-799.23,0.00013698,2]
[398155575,1765407039057,-500.0,0.00013698,2]
[398155577,1765407039070,-500.0,0.00013698,2]
[398155579,1765407039080,-500.0,0.00013698,2]
[398155581,1765407039089,-500.0,0.00013698,2]
[398155583,1765407039098,-500.0,0.00013698,2]
[398155585,1765407039109,-1687.86,0.00013698,2]
[398155587,1765407039118,-500.0,0.00013698,2]
[398155589,1765407039127,-500.0,0.00013698,2]
[398155591,1765407039136,-500.0,0.00013698,2]
[398155593,1765407039148,-500.0,0.00013698,2]
[398155595,1765407039157,-500.0,0.00013698,2]
[398155597,1765407039166,-500.0,0.00013698,2]
[398155599,1765407039175,-749.25,0.00013698,2]
[398155600,1765407039184,-500.0,0.00013698,2]
[398155602,1765407039194,-500.0,0.00013698,2]
[398155604,1765407039203,-575.35,0.00013698,2]
[398155606,1765407039212,-500.0,0.00013698,2]
[398155608,1765407039221,-500.0,0.00013698,2]
[398155610,1765407039230,-500.0,0.00013698,2]
[398155612,1765407039240,-500.0,0.00013698,2]
[398155614,1765407039249,-500.0,0.00013698,2]
[398155616,1765407039258,-500.0,0.00013698,2]
[398155618,1765407039267,-500.0,0.00013698,2]
[398155621,1765407039278,-500.0,0.00013698,2]
[398155622,1765407039287,-500.0,0.00013698,2]
[398155624,1765407039296,-500.0,0.00013698,2]
[398155626,1765407039305,-1370.1,0.00013698,2]
[398155628,1765407039315,-337.77770039,0.00013698,2]
[398155630,1765407039324,-500.0,0.00013698,2]
[398155632,1765407039333,-500.0,0.00013698,2]
[398155634,1765407039342,-1015.14,0.00013698,2]
[398155636,1765407039352,-500.0,0.00013698,2]
[398155638,1765407039361,-500.0,0.00013698,2]
[398155640,1765407039370,-1192.24,0.00013698,2]
[398155642,1765407039379,-949.9,0.00013698,2]
[398155644,1765407039388,-500.0,0.00013698,2]
[398155646,1765407039397,-500.0,0.00013698,2]
[398155648,1765407039407,-848.61,0.00013698,2]
[398155650,1765407039415,-500.0,0.00013698,2]
[398155652,1765407039425,-500.0,0.00013698,2]
[398155654,1765407039434,-790.37,0.00013698,2]
[398155656,1765407039443,-500.0,0.00013698,2]
[398155658,1765407039452,-500.0,0.00013698,2]
[398155660,1765407039461,-500.0,0.00013698,2]
[398155662,1765407039471,-947.65,0.00013698,2]
[398155664,1765407039480,-1627.74,0.00013698,2]
[398155666,1765407039490,-1000.0,0.00013698,2]
[398155668,1765407039499,-430.76548646,0.00013698,2]
[398155670,1765407039508,-500.0,0.00013698,2]
[398155672,1765407039518,-2038.75,0.00013698,2]
[398155674,1765407039528,-936.98,0.00013698,2]
[398155676,1765407039537,-500.0,0.00013698,2]
[398155678,1765407039546,-500.0,0.00013698,2]
[398155680,1765407039556,-500.0,0.00013698,2]
[398155682,1765407039565,-500.0,0.00013698,2]
[398155684,1765407039574,-1560.24,0.00013698,2]
[398155686,1765407039583,-954.22,0.00013698,2]
[398155688,1765407039592,-500.0,0.00013698,2]
[398155689,1765407039603,-500.0,0.00013698,2]
[398155691,1765407039612,-500.0,0.00013698,2]
[398155693,1765407039621,-500.0,0.00013698,2]
[398155695,1765407039631,-500.0,0.00013698,2]
[398155697,1765407039640,-500.0,0.00013698,2]
[398155699,1765407039649,-500.0,0.00013698,2]
[398155701,1765407039659,-500.0,0.00013698,2]
[398155703,1765407039667,-500.0,0.00013698,2]
[398155705,1765407039677,-500.0,0.00013698,2]
[398155707,1765407039686,-569.65,0.00013698,2]
[398155709,1765407039696,-500.0,0.00013698,2]
[398155712,1765407039705,-500.0,0.00013698,2]
[398155713,1765407039715,-500.0,0.00013698,2]
[398155715,1765407039724,-500.0,0.00013698,2]
[398155718,1765407039733,-500.0,0.00013698,2]
[398155720,1765407039744,-2189.18,0.00013698,2]
[398155722,1765407039754,-500.0,0.00013698,2]
[398155724,1765407039763,-500.0,0.00013698,2]
[398155725,1765407039773,-500.0,0.00013698,2]
[398155728,1765407039782,-500.0,0.00013698,2]